Cogmind - Beta 13 @@@ ROGUE MODE // 2024.05.16 @ 09:32:20 Player: Sandwich Result: Self-destructed Performance ------------- Evolutions (7) 3500 Regions Visited (9) 1800 Robots Destroyed (50) 250 Value Destroyed (2065) 2065 Prototype IDs (6) 120 Alien Tech Used (0) 0 Bonus (27) 27 TOTAL SCORE: 7762 Bonus ------- Follower Combat Kills 56 Friendly Fire -29 Cogmind --------- Core Integrity 753/1300 Matter 159/300 Energy 293/300 System Corruption 15% Temperature Hot (217) Movement Core (350) Ox6 Location -3/Research Parts ------- > --- POWER (2) -------- (None) > --- PROPULSION (5) --- (None) > --- UTILITY (10) ----- Large Storage Unit Compact Battery Advanced Signal Interpreter 0b10 Decoder Chip [Generic] 0b10 Decoder Chip [Generic] System Shield > --- WEAPON (4) ------- (None) > --- INVENTORY (15) --- Combat Gravmag System Improved Antigrav System Large Storage Unit Long-range Sensor Array Experimental Sensor Array Advanced Terrain Scan Processor Matter Filter Advanced Particle Charger Gatling Laser Advanced Plasma Rifle Advanced Plasma Rifle Advanced Plasma Rifle Rocket Launcher Rocket Launcher Peak State ------------ > --- POWER ------------ (None) > --- PROPULSION ------- Improved Heavy Treads Flexi-carbon Leg Armored Wheel > --- UTILITY ---------- Scrap Engine Improved Heat Sink Advanced Heat Sink Large Storage Unit Experimental Sensor Array Advanced Signal Interpreter 0b10 Decoder Chip [Generic] Improved Kinecellerator System Shield > --- WEAPON ----------- Advanced Plasma Rifle Advanced Plasma Rifle Shotgun Ballistic Mass Construct/C > --- INVENTORY -------- Combat Gravmag System Improved Antigrav System Compact Battery Advanced Terrain Scan Processor 0b10 Decoder Chip [Generic] Advanced Particle Charger Gatling Laser Advanced Plasma Rifle Advanced Plasma Rifle Advanced Plasma Rifle Advanced Plasma Rifle Rocket Launcher Rocket Launcher [Rating: 107] Favorites ----------- Power Constructs Engine Improved Ion Engine Power Core Fission Core Reactor Constructs Propulsion Wheel Treads Improved Heavy Treads Leg Flexi-carbon Leg Wheel Wheel Utility Large Storage Unit Device Improved Heat Sink Storage Large Storage Unit Processor 0b10 Decoder Chip [Generic] Hackware System Shield Weapon Advanced Plasma Rifle Energy Gun Advanced Plasma Rifle Ballistic Gun Heavy Assault Rifle Ballistic Cannon Constructs Launcher Rocket Launcher Build | -11 -10 -10 -10 -7 -5 -4 -4 -4 -3 ------- Run | Yrd Mat Min Sub Rec Fac Fac Upp Upp Res Slots Evolved 14 | . . . . . 10 2 . . 2 Power 1 | . . . . . 1 . . . . Propulsion 3 | . . . . . 2 1 . . . Utility 8 | . . . . . 5 1 . . 2 Weapon 2 | . . . . . 2 . . . . Parts Attached 70 | 6 5 5 2 6 8 12 10 . 16 Power 5 | 1 . 1 . . 1 . . . 2 Engine 3 | 1 . 1 . . . . . . 1 Core 1 | . . . . . 1 . . . . Reactor 1 | . . . . . . . . . 1 Propulsion 13 | 2 1 1 . 3 2 2 1 . 1 Treads 5 | 1 . 1 . 1 1 1 . . . Leg 1 | . . . . . . . 1 . . Wheel 7 | 1 1 . . 2 1 1 . . 1 Hover . | . . . . . . . . . . Flight . | . . . . . . . . . . Utility 25 | 1 2 2 2 1 2 1 6 . 8 Device 14 | . 1 1 . 1 1 . 5 . 5 Storage 4 | 1 1 1 . . . . . . 1 Processor 6 | . . . 2 . . 1 1 . 2 Hackware 1 | . . . . . 1 . . . . Protection . | . . . . . . . . . . Artifact . | . . . . . . . . . . Weapon 27 | 2 2 1 . 2 3 9 3 . 5 Energy Gun 12 | . . . . 2 . 6 1 . 3 Energy Cannon . | . . . . . . . . . . Ballistic Gun 10 | 2 2 1 . . . 3 . . 2 Ballistic Cannon . | . . . . . . . . . . Launcher 5 | . . . . . 3 . 2 . . Special Weapon . | . . . . . . . . . . Impact Weapon . | . . . . . . . . . . Slashing Weapon . | . . . . . . . . . . Piercing Weapon . | . . . . . . . . . . Special Melee Weapon . | . . . . . . . . . . Unidentified Prototypes 3 | . . . . . . 1 1 . 1 Parts Lost 40 | . . . 1 4 2 7 4 . 22 Power 5 | . . . . . . . 2 . 3 Propulsion 13 | . . . . 2 1 3 1 . 6 Utility 7 | . . . 1 1 . . . . 5 Weapon 15 | . . . . 1 1 4 1 . 8 Highest Loss Streak 8 | . . . 1 4 2 7 1 . 8 To Critical Strikes 1 | . . . . . . . . . 1 Average Slot Usage (%) 78 | . 89 100 100 97 68 50 74 68 65 Engine 6 | . 14 14 14 14 4 5 2 . 1 Treads 7 | . 14 14 14 11 10 1 5 5 . Leg 2 | . . . . . . 4 4 5 2 Wheel 8 | . 14 14 14 15 10 3 5 5 7 Device 12 | . 4 14 1 8 7 10 17 21 9 Storage 8 | . 14 14 14 14 5 5 5 5 8 Processor 5 | . . . 12 4 . . 6 5 13 Hackware 3 | . . . . . 3 5 5 5 4 Energy Gun 9 | . . . . 16 5 11 16 10 7 Ballistic Gun 8 | . 28 28 28 10 . 2 . . . Launcher 1 | . . . . . 16 . 3 . . Naked Turns . | . . . . . . . . . . Heaviest Build 61 | 14 22 34 34 35 54 56 56 47 61 Greatest Support 75 | 20 10 10 10 20 20 20 75 75 75 Greatest Overweight (x) 4 | 1 2 3 3 3 2 4 4 . 3 Average Overweight (x) 2 | . 1 2 3 2 1 2 3 . 1 Largest Inventory Capacity 15 | 8 10 15 15 15 15 15 15 15 15 Average Capacity 14 | 6 9 11 15 15 15 15 15 15 15 Most Carried 15 | 2 10 14 14 15 13 15 15 15 15 Average Carried 12 | . 8 11 13 13 10 9 14 15 13 Final Capacity 15 | 8 10 15 15 15 15 15 15 15 15 Final Carried 15 | 2 10 14 13 13 10 15 15 15 14 Scrap Engine Consumption 40 | . . . . . 13 8 7 . 12 Constructs Created 6 | . . . . . 1 1 1 . 3 Constructs Modified 8 | . . . . . 2 1 3 . 2 Class Distribution -------------------- 36% | Mutant 29% | Tank 12% | Gunner 9% | Skirmisher 5% | Scavenger-Mutant 3% | Scavenger-Gunner Dominant Class ---------------- Mutant | -10/Materials Mutant | -10/Mines Mutant | -10/Subcaves Scavenger-Mutant | -7/Recycling Scavenger-Gunner | -5/Factory Mutant | -4/Factory Tank | -4/Upper Caves Gunner | -4/Upper Caves Skirmisher | -3/Research Resources | -11 -10 -10 -10 -7 -5 -4 -4 -4 -3 ----------- Run | Yrd Mat Min Sub Rec Fac Fac Upp Upp Res Matter Collected 1496 | 228 238 160 73 94 72 125 332 . 174 Remotely . | . . . . . . . . . . Salvage Created 1956 | . 284 205 39 208 172 124 426 . 498 Parts 94 | . 11 15 3 4 14 2 11 . 34 Haulers Intercepted . | . . . . . . . . . . Recyclers Shooed 7 | . 2 2 . 1 1 . . . 1 Parts Field Recycled . | . . . . . . . . . . Retrieved Matter . | . . . . . . . . . . Parts Self-Destructed 14 | . . . 10 . . . 4 . . Prevented 1 | . . . . . . . 1 . . Kills | -11 -10 -10 -10 -7 -5 -4 -4 -4 -3 ------- Run | Yrd Mat Min Sub Rec Fac Fac Upp Upp Res Combat Hostiles Destroyed 45 | . 4 8 1 3 11 2 10 . 6 Guns 23 | . 4 8 1 3 . 2 4 . 1 Cannons 3 | . . . . . . . . . 3 AOE 14 | . . . . . 11 . 3 . . Classes Destroyed 10 | . 2 2 1 . 1 1 1 . 2 Builder 1 | . . . . . . . . . 1 Tunneler 2 | . . . . . 1 . . . 1 Recycler 2 | . 2 . . . . . . . . Swarmer 19 | . . 6 . . 9 . 4 . . Grunt 10 | . 4 1 . . 2 . 3 . . Sentry 7 | . . 1 . 3 . . 1 . 2 Hunter 4 | . . . . . . 2 2 . . Programmer 4 | . . . . . . . . . 4 Subdweller 1 | . . . 1 . . . . . . Decomposer 1 | . . . . . . . 1 . . Best Kill Streak 6 | . 2 3 1 2 6 1 4 . 2 Combat Bots Only 6 | . 1 3 1 2 6 1 4 . 2 Max Kills in Single Turn 4 | . 1 1 1 1 4 1 1 . 1 Gunslinging . | . . . . . . . . . . Exploded 4 | . . . . . 4 . 1 . . Melee . | . . . . . . . . . . Uniques/NPCs Destroyed . | . . . . . . . . . . Combat | -11 -10 -10 -10 -7 -5 -4 -4 -4 -3 -------- Run | Yrd Mat Min Sub Rec Fac Fac Upp Upp Res Hostile Shots Fired 498 | . 34 21 13 87 8 60 128 . 147 Missed 144 | . 13 3 4 28 1 27 35 . 33 Damage Taken 5891 | . 268 168 136 456 202 671 1447 . 2543 Core 1050 | . 48 39 53 73 16 73 201 . 547 Absorbed by Shields 199 | . . . . . . . 199 . . Reduced by Siege Mode 13 | . . . . . . . 13 . . Regen/Repaired (Parts) 62 | . . . . . . . 9 . 53 Core Remaining (%) 72 | 100 . . . 14 98 . . 76 . Volleys Fired 168 | . 31 14 9 12 7 12 38 . 45 Largest 4 | . 2 2 2 2 3 4 3 . 3 Hottest 334 | . 40 46 46 145 145 174 264 . 334 Shots Fired 330 | . 62 28 18 24 17 44 59 . 78 Gun 285 | . 62 28 18 24 5 44 51 . 53 Cannon 27 | . . . . . . . 2 . 25 Launcher 18 | . . . . . 12 . 6 . . Special . | . . . . . . . . . . Kinetic 198 | . 62 28 18 18 . 25 2 . 45 Thermal 114 | . . . . 6 5 19 51 . 33 Explosive 18 | . . . . . 12 . 6 . . Electromagnetic . | . . . . . . . . . . Robot Hit Streak 24 | . 14 7 8 12 15 8 9 . 24 Robot Miss Streak 4 | . 2 2 2 2 3 4 4 . 4 Penetration Max 1 | . . . . . . . . . 1 Secondary Targets 2 | . . 1 . . . 1 . . . Max Gunslinging Chain 1 | . . 1 . . . 1 . . . Shots Hit Robots 229 | . 51 18 12 19 7 28 38 . 56 Core Hits 112 | . 13 11 1 11 24 11 19 . 22 Critical Kills 3 | . 1 . 1 . . . . . 1 Critical Parts Destroyed 6 | . 1 . . . . . . . 5 Critical Strikes 15 | . 2 . 1 . 1 1 2 . 8 Burn 6 | . . . . . 1 1 2 . 2 Destroy 9 | . 2 . 1 . . . . . 6 Melee Attacks . | . . . . . . . . . . Impact . | . . . . . . . . . . Slashing . | . . . . . . . . . . Piercing . | . . . . . . . . . . Sneak Attacks . | . . . . . . . . . . Combat Hostiles . | . . . . . . . . . . Follow-up Attacks . | . . . . . . . . . . Damage Inflicted 6194 | . 651 319 200 320 1150 460 1379 . 1715 Guns 3712 | . 651 319 200 320 90 372 797 . 963 Cannons 814 | . . . . . . . 62 . 752 Explosions 1668 | . . . . . 1060 88 520 . . Melee . | . . . . . . . . . . Ramming . | . . . . . . . . . . Kinetic 2559 | . 651 319 200 198 . 193 62 . 936 Thermal 1967 | . . . . 122 90 179 797 . 779 Explosive 1668 | . . . . . 1060 88 520 . . Electromagnetic . | . . . . . . . . . . Impact . | . . . . . . . . . . Slashing . | . . . . . . . . . . Piercing . | . . . . . . . . . . Highest Corruption 15 | . . . . . . . . . 15 Average Corruption 3 | . . . . . . . . . 3 Corruption Purged . | . . . . . . . . . . Corruption Blocked . | . . . . . . . . . . Effects 18 | . . . . . . . . . 18 Message Errors 2 | . . . . . . . . . 2 Matter Fused 4 | . . . . . . . . . 4 Energy Discharges 4 | . . . . . . . . . 4 Parts Fused 1 | . . . . . . . . . 1 Data Loss (minor) 4 | . . . . . . . . . 4 Alerts 1 | . . . . . . . . . 1 Weapon Failures 2 | . . . . . . . . . 2 Overload Shots . | . . . . . . . . . . Overflow Damage 128 | . . . . . 92 33 . . 3 Projectiles 3 | . . . . . . . . . 3 Explosions 125 | . . . . . 92 33 . . . Melee . | . . . . . . . . . . Knockbacks 8 | . . . . . . . . . 8 Impact . | . . . . . . . . . . Kinetic 8 | . . . . . . . . . 8 Secondary . | . . . . . . . . . . Self-Inflicted Damage 201 | . . . . . 45 75 81 . . Shots 5 | . . . . . 1 1 3 . . Rammed . | . . . . . . . . . . Targets Rammed . | . . . . . . . . . . Kicked . | . . . . . . . . . . Crushed . | . . . . . . . . . . Highest Temperature 818 | . 6 . . 165 . 111 333 . 818 Average Temperature 153 | . 2 . . 44 . 68 107 . 232 Received Heat Transfer 690 | . 150 27 54 138 18 . 141 . 162 Effects 18 | . . . . . . . . . 18 Shutdowns 5 | . . . . . . . . . 5 Energy Bleed 2 | . . . . . . . . . 2 Matter Decay 2 | . . . . . . . . . 2 Short Circuit 1 | . . . . . . . . . 1 Damage (minor) 2 | . . . . . . . . . 2 Damage (major) 5 | . . . . . . . . . 5 Damage (core) 1 | . . . . . . . . . 1 Siege Activations 2 | . . . . . . . 2 . . Total Turns 13 | . . . . . . . 13 . . Longest Duration 12 | . . . . . . . 12 . . Robots Corrupted . | . . . . . . . . . . Combat Hostiles . | . . . . . . . . . . Parts Fried . | . . . . . . . . . . Impact Corruptions . | . . . . . . . . . . Robots Melted 5 | . . . . . . . 3 . 2 Combat Hostiles 5 | . . . . . . . 3 . 2 Parts Melted 10 | . . . . 2 . . 3 . 5 Heat Transferred 4170 | . . . . 286 285 481 1694 . 1424 Parts Sabotaged . | . . . . . . . . . . Parts Stolen . | . . . . . . . . . . Parts Stripped . | . . . . . . . . . . Power Chain Reactions . | . . . . . . . . . . Alert | -11 -10 -10 -10 -7 -5 -4 -4 -4 -3 ------- Run | Yrd Mat Min Sub Rec Fac Fac Upp Upp Res Peak Influence 402 | . 172 234 . 176 402 266 . . 65 Initial 186 | . . . . 174 . 186 . . 10 Average 103 | . 74 80 . 132 287 197 . . 12 Maximum Alert Level 2 | . . 1 . . 2 1 . . . Low Security (%) 83 | 100 100 95 . 100 14 46 . . 100 Level 1 15 | . . 4 . . 80 53 . . . Level 2 . | . . . . . 5 . . . . Level 3 . | . . . . . . . . . . Level 4 . | . . . . . . . . . . Level 5 . | . . . . . . . . . . High Security . | . . . . . . . . . . Max Security . | . . . . . . . . . . Squads Dispatched 9 | . . . . . 1 2 . . 6 Investigation . | . . . . . . . . . . Extermination 2 | . . . . . . . . . 2 Reinforcement 4 | . . . . . 1 2 . . 1 Assault . | . . . . . . . . . . Garrison 3 | . . . . . . . . . 3 Intercept . | . . . . . . . . . . Searches Triggered . | . . . . . . . . . . Construction Impeded . | . . . . . . . . . . Haulers Reinforced . | . . . . . . . . . . Active Scanning Responses . | . . . . . . . . . . Cargo Convoy Interrupts . | . . . . . . . . . . Stealth | -11 -10 -10 -10 -7 -5 -4 -4 -4 -3 --------- Run | Yrd Mat Min Sub Rec Fac Fac Upp Upp Res Distress Signals 2 | . . . . . . . . . 2 Communications Jammed . | . . . . . . . . . . Distress Signals . | . . . . . . . . . . Times Spotted 80 | . 9 8 15 3 12 4 10 . 19 Peak Tracking Total 14 | . 3 2 3 3 5 2 4 . 14 Tactical Retreats 6 | . 1 . 2 . 2 . . . 1 Traps | -11 -10 -10 -10 -7 -5 -4 -4 -4 -3 ------- Run | Yrd Mat Min Sub Rec Fac Fac Upp Upp Res Traps Triggered 1 | . . . . . . . . . 1 Indirectly . | . . . . . . . . . . Trap Hack Attempts . | . . . . . . . . . . Triggered . | . . . . . . . . . . Disarmed . | . . . . . . . . . . Reprogrammed . | . . . . . . . . . . Reused . | . . . . . . . . . . Traps Extracted . | . . . . . . . . . . Installed . | . . . . . . . . . . Triggered 1 | . . . . . . . 1 . . Machines | -11 -10 -10 -10 -7 -5 -4 -4 -4 -3 ---------- Run | Yrd Mat Min Sub Rec Fac Fac Upp Upp Res Machines Disabled 6 | . . 1 1 . . 4 . . . Max in Single Turn 4 | . . 1 . . . 4 . . . Machines Repaired . | . . . . . . . . . . Machines Dismantled . | . . . . . . . . . . Machines Sabotaged . | . . . . . . . . . . Overloaded Fab Kills . | . . . . . . . . . . Hacking | -11 -10 -10 -10 -7 -5 -4 -4 -4 -3 --------- Run | Yrd Mat Min Sub Rec Fac Fac Upp Upp Res Machines Accessed 8 | . 2 . . 1 . . 2 . 3 Terminals 5 | . 2 . . 1 . . 1 . 1 Fabricators . | . . . . . . . . . . Repair Stations 2 | . . . . . . . . . 2 Recycling Units . | . . . . . . . . . . Scanalyzers . | . . . . . . . . . . Garrison Access . | . . . . . . . . . . Total Hacks 17 | . 7 . . 3 . . 2 . 5 Successful 5 | . 3 . . . . . 2 . . Failed 12 | . 4 . . 3 . . . . 5 Catastrophic 4 | . . . . 1 . . . . 3 Database Lockouts . | . . . . . . . . . . Manual 7 | . 7 . . . . . . . . Terminals 12 | . 7 . . 3 . . 1 . 1 Fabricators . | . . . . . . . . . . Repair Stations 4 | . . . . . . . . . 4 Recycling Units . | . . . . . . . . . . Scanalyzers . | . . . . . . . . . . Garrison Access . | . . . . . . . . . . Terminal Hacks 3 | . 1 . . . . . 2 . . Record 1 | . . . . . . . 1 . . Open Door 1 | . . . . . . . 1 . . Branch Access Points 1 | . 1 . . . . . . . . Fabricator Hacks . | . . . . . . . . . . Repair Station Hacks . | . . . . . . . . . . Recycling Unit Hacks . | . . . . . . . . . . Scanalyzer . | . . . . . . . . . . Garrison Access Hacks . | . . . . . . . . . . Unauthorized Hacks 2 | . 2 . . . . . . . . Terminals 2 | . 2 . . . . . . . . Botnet 2 | . 2 . . . . . . . . Fabricators . | . . . . . . . . . . Repair Stations . | . . . . . . . . . . Recycling Units . | . . . . . . . . . . Scanalyzers . | . . . . . . . . . . Garrison Access . | . . . . . . . . . . Data Cores Recovered . | . . . . . . . . . . Used . | . . . . . . . . . . Hacking Detections 6 | . 2 . . 1 . . . . 3 Full Trace Events . | . . . . . . . . . . Feedback Events . | . . . . . . . . . . Feedback Blocked . | . . . . . . . . . . Robot Schematics Acquired . | . . . . . . . . . . Robots Built . | . . . . . . . . . . Authchips . | . . . . . . . . . . Time . | . . . . . . . . . . Total Robot Build Rating . | . . . . . . . . . . Part Schematics Acquired . | . . . . . . . . . . Parts Built . | . . . . . . . . . . Authchips . | . . . . . . . . . . Time . | . . . . . . . . . . Total Part Build Rating . | . . . . . . . . . . Parts Repaired . | . . . . . . . . . . Time . | . . . . . . . . . . Parts Recycled . | . . . . . . . . . . Recycled Matter . | . . . . . . . . . . Retrieved Matter . | . . . . . . . . . . Retrieved Components . | . . . . . . . . . . Parts Scanalyzed . | . . . . . . . . . . Part Schematics Acquired . | . . . . . . . . . . Parts Damaged . | . . . . . . . . . . Bothacking | -11 -10 -10 -10 -7 -5 -4 -4 -4 -3 ------------ Run | Yrd Mat Min Sub Rec Fac Fac Upp Upp Res Used RIF Installer . | . . . . . . . . . . Robots Hacked . | . . . . . . . . . . Non-combat . | . . . . . . . . . . Combat . | . . . . . . . . . . Robot Hacks Applied . | . . . . . . . . . . Relay Couplers Released . | . . . . . . . . . . Fabnet Peak Effective % . | . . . . . . . . . . Robots Rewired . | . . . . . . . . . . Allies Hacked . | . . . . . . . . . . Hacks Repelled . | . . . . . . . . . . Allies | -11 -10 -10 -10 -7 -5 -4 -4 -4 -3 -------- Run | Yrd Mat Min Sub Rec Fac Fac Upp Upp Res Total Allies 5 | . . 5 . . . . . . . Largest Group 5 | . . 5 5 3 1 1 . . . Highest-Rated Group 85 | . . 85 85 53 14 14 . . . Highest-Rated Ally 31 | . . 31 31 31 14 14 . . . Total Orders . | . . . . . . . . . . Ally Attacks 30 | . . 2 21 7 . . . . . Total Damage 380 | . . 41 264 75 . . . . . Kills 6 | . . 1 5 . . . . . . Allies Corrupted . | . . . . . . . . . . Allies Melted . | . . . . . . . . . . Intel | -11 -10 -10 -10 -7 -5 -4 -4 -4 -3 ------- Run | Yrd Mat Min Sub Rec Fac Fac Upp Upp Res Robot Analysis Total . | . . . . . . . . . . Derelict Logs Recovered 3 | . . 2 1 . . . . . . Drone Launches . | . . . . . . . . . . Drone Recoveries . | . . . . . . . . . . Decoded 0b10 Intel 39 | . . . . . . . . . 39 Traps 5 | . . . . . . . . . 5 Emergency Access 7 | . . . . . . . . . 7 Items 19 | . . . . . . . . . 19 Machines 8 | . . . . . . . . . 8 Exploration | -11 -10 -10 -10 -7 -5 -4 -4 -4 -3 ------------- Run | Yrd Mat Min Sub Rec Fac Fac Upp Upp Res Turns Passed 5837 | 43 418 723 401 479 260 521 2093 44 855 Spaces Moved 3646 | 37 281 546 261 337 191 242 1241 28 482 Core 2 | 2 . . . . . . . . . Treads 91 | 1 . . . . . . 52 28 10 Legs 144 | . . . . . . 119 6 . 19 Wheels 3409 | 34 281 546 261 337 191 123 1183 . 453 Hover . | . . . . . . . . . . Flight . | . . . . . . . . . . Fastest Speed 50 | 50 95 110 125 95 95 110 120 160 100 Average Speed 129 | 88 99 114 125 121 108 176 144 160 118 Slowest Speed 260 | 160 110 125 125 125 110 224 260 160 160 Overloaded Moves . | . . . . . . . . . . Propulsion Burnouts . | . . . . . . . . . . Robots Hopped . | . . . . . . . . . . Cave-ins Triggered . | . . . . . . . . . . Exploration Rate (%) 37 | 3 53 90 21 77 5 7 99 4 14 Regions Visited 9 Branch Regions 5 Pre-discovered Areas 1 | . . 1 . . . . . . . Known Exits Taken 1 | . 1 . . . . . . . . Unknown Exits Taken 8 | 1 . 1 1 1 1 1 1 1 . Scrap Searched 6 | . . 1 3 . . . 1 1 . Spaces Dug . | . . . . . . . . . . Terrain Destroyed 135 | . . . . . 44 43 47 . 1 Melee . | . . . . . . . . . . Projectile 12 | . . . . . . . 11 . 1 AOE 123 | . . . . . 44 43 36 . . Terrain Rammed . | . . . . . . . . . . Walls Destroyed . | . . . . . . . . . . Machines Disabled . | . . . . . . . . . . Actions | -11 -10 -10 -10 -7 -5 -4 -4 -4 -3 --------- Run | Yrd Mat Min Sub Rec Fac Fac Upp Upp Res Total 4469 | 44 367 618 318 381 228 308 1485 27 693 Wait 514 | . 28 41 45 22 18 29 189 . 142 Move 3637 | 36 280 545 260 336 190 241 1240 27 482 Hop . | . . . . . . . . . . Pick Up 46 | 2 14 7 1 3 3 10 2 . 4 Fast Attach 29 | 6 2 . . 1 2 7 4 . 7 Attach 22 | . . . 1 4 5 3 1 . 8 Detach 6 | . . . . 1 . . 2 . 3 Swap 19 | . 3 5 1 1 1 2 5 . 1 Drop 28 | . 9 6 1 1 2 4 4 . 1 Fire 168 | . 31 14 9 12 7 12 38 . 45 Melee . | . . . . . . . . . . Ram . | . . . . . . . . . . Kick . | . . . . . . . . . . Crush . | . . . . . . . . . . Escape Stasis . | . . . . . . . . . . Rewire . | . . . . . . . . . . Trap . | . . . . . . . . . . Miscellaneous . | . . . . . . . . . . Route ------- -11/Scrapyard -10/Materials (discovered 2 exits: [*Mat] / *Min) -10/Mines (discovered 3 exits: [*Mat x2] / [*Sub]) -10/Subcaves -7/Recycling -5/Factory -4/Factory -4/Upper Caves -4/Upper Caves -3/Research History --------- Turn | Location | Event 22 | -11/Scrapyard | Discovered new exit (range 15) 44 | -11/Scrapyard | Entered Materials 191 | -10/Materials | Identified exit to Mines 312 | -10/Materials | Build established: Mutant 391 | -10/Materials | Discovered new exit (range 16) 462 | -10/Materials | Entered Mines 494 | -10/Mines | Discovered new exit (range 6) 535 | -10/Mines | Found a damaged Exp. Sensor Array with a note attached 537 | -10/Mines | Found Prototype Device 572 | -10/Mines | Discovered new exit (range 13) 836 | -10/Mines | Learned Materials stockpile data 846 | -10/Mines | Learned location of Zion (-7) 906 | -10/Mines | Joined a pair of Derelicts in attacking an 0b10 outpost 1040 | -10/Mines | Assisted by bots powering up and referring to "LRC-V3" 1105 | -10/Mines | Found a hidden stash of uninstalled traps 1155 | -10/Mines | Discovered new exit (range 12) 1185 | -10/Mines | Entered Subcaves 1185 | -10/Subcaves | Accompanied by 5 allies 1190 | -10/Subcaves | Led the pair of lost Derelicts to an unsafe place 1273 | -10/Subcaves | Core integrity fell below 50% 1402 | -10/Subcaves | Learned Materials trap positions 1530 | -10/Subcaves | Discovered new exit (range 11) 1586 | -10/Subcaves | Entered Recycling 1586 | -7/Recycling | Accompanied by 3 allies 1591 | -7/Recycling | Found Scrap Engine 1763 | -7/Recycling | Core integrity fell below 20% 1788 | -7/Recycling | Lost 4 parts (2n1u1w) 2040 | -7/Recycling | Discovered new exit (range 15) 2050 | -7/Recycling | Build established: Scavenger-Mutant 2065 | -7/Recycling | Entered Factory 2065 | -5/Factory | Accompanied by 1 ally 2065 | -5/Factory | Evolved 10 slots: Power x1, Propulsion x2, Utility x5, Weapon x2 2266 | -5/Factory | Discovered new exit (range 16) 2325 | -5/Factory | Entered another Factory area 2325 | -4/Factory | Accompanied by 1 ally 2325 | -4/Factory | Evolved 2 slots: Propulsion x1, Utility x1 2479 | -4/Factory | Lost 7 parts (3n4w) 2729 | -4/Factory | Build established: Mutant 2789 | -4/Factory | Discovered new exit (range 15) 2846 | -4/Factory | Entered Upper Caves 3222 | -4/Upper Caves | Build established: Tank 3892 | -4/Upper Caves | Identified Exp. Sensor Array 4845 | -4/Upper Caves | Attracted the attention of an 0b10 checkpoint 4915 | -4/Upper Caves | Discovered new exit (range 15) 4930 | -4/Upper Caves | Build established: Gunner 4939 | -4/Upper Caves | Entered another Upper Caves area 4939 | -4/Upper Caves | Discovered new exit (range 10) 4983 | -4/Upper Caves | Entered Research 4983 | -3/Research | Evolved 2 slots: Utility x2 5167 | -3/Research | Lost 3 parts (1n2u) 5276 | -3/Research | Spotted B-86 Titan 5595 | -3/Research | Garrison activated, responded to threat 5627 | -3/Research | Lost 6 parts (2p3n1w) 5707 | -3/Research | Lost 4 parts (1u3w) 5828 | -3/Research | System corruption reached 10% 5838 | -3/Research | Self-destructed Last Messages --------------- 05832_ G-67 Veteran suffers critical hit (Destroy). 05832_ Destroyed Adv. Heat Sink. 05832_ HV Slug penetrates Wall. 05833_ Wall collapses. 05833_ Slug penetrates Wall. 05833_ Slug penetrates P-80 Master. 05833_ Slug penetrates Wall. 05833_ Antimatter-Particle Reactor destroyed. 05834_ K-01 Serf destroyed. 05835_ HV Slug penetrates P-80 Master. 05835_ Slug penetrates Wall. 05835_ Hyp. Railgun destroyed. 05837_ Slug penetrates Wall. 05837_ Prc. Phase Gun destroyed. 05837_ Slug penetrates P-80 Master. 05837_ Imp. Kinecellerator destroyed. 05838_ Wall collapses. 05838_ Hyp. Railgun destroyed. 05838_ U-05 Engineer builds a Wall. 05838_ K-01 Serf collects debris. Map ----- +----------------------------------------------------+ | " # +????????# #?????????# | | " # #????????# % #?????????###### | | " #################+######+##################??? | | ?????? #### | | ????? | | ???? #### | | ??? # | | #########?????+######+######+############# # | | ??????????????????????????# #???????# # " | | ??????????????????????????# #???##### # " | | ??????????????????????????# ## + " | | ??????????????????????????# + # | | ??????????????????????????# ## # | | ??????????????????????????# ## # | | ??????????????????????????# ## ### #### | | ??????????????????????????+ ## ??# #??? | | ??????????????????????????# ## ???# ^^#### | | ??????????????????????????# ## ???# | | ??????????????????????????# ## ????# | | ??????????????????????????# ## ?????# | | ??????????????????????????# #???????# | | ??????????????################+###???????######## | | ??????????????# #?# #????? #?]??????# | | ??????????????# ### #### w#????????# | | ??????????????# "" p#hk u + "?????# | | ??????????????# "" @puu% #????????# | | ??????????????# "" ! g;h%^ p % #????????# | | ??????????????# S ! # """" #????????# | | ??????????????# "" # """" #????????## | | ?????????????## "" # """" #?????????? | | ?????????????# "" # ^ """" #?????????? | | ?????????????## !!* # ???#?????????? | | ??????????????# !=!!! # ????????????? | | ??????????????# [%!%== # ????????????? | | ??????????????#####R######## ???????????? | | ??????????????????# #??????## ##### ???????????? | | ??????????????????# #???????? #???? ???????????? | | ??????????????????# #???????? #????? ??????????# | | ??????????????????# #????????/#?????? ???????????# | | ??????????????????# #?????[?? ???????????????????# | | ??????????????????# #???????? ???????????????????# | | ??????????????????# #???????? ???????????????????# | | ??????????????????# #????????????????????????????# | | ??????????????????# #?????????????????????==?????# | | ??????????????????# #??????????????????????==????# | | ?????????????????? ?????????????????????=??????? | | ?????????????????? ????????????????????????????? | | ?????????????????? ????????????????????????????? | | ?????????????????? ????????????????????????????? | | ????????????????? #??????????[????????????????? | +----------------------------------------------------+ Best States ------------- Heat Dissipation 76 Energy Generation 26 Energy Capacity 598 Matter Stores 300 Matter Capacity 300 Sight Range 16 Robot Scan Range 20 Terrain Scan Density 10 Evasion (%) 44 Targeting Accuracy 5 Recoil Reduction 2 Kinecelleration 40 Defensive Hacking 10 Item Schematics ----------------- None Robot Schematics ------------------ None Fabricated ------------ Nothing Alien Tech Used ----------------- None Achievements -------------- None Challenges ------------ None Game ------ Seed RagnarokTacticalTerrabomb Manual? 0 Play Time 00:43:31 Cumulative 221.0 hours Start 2024.05.13 @ 19:18:37 End 2024.05.16 @ 09:32:20 Sessions 5 Manual Loads 0 Difficulty Rogue Special Mode None Game No. 283 Rogue 239 Adventurer 4 Explorer 40 Win Type - Total 10 Types 8/1/0/1/0/0/0/0/0 Lore% 52 Gallery% 75 Achievement% 61 Wizard Run 0 Options --------- Layout 0 ASCII 0 Keyboard 0 Movement Mouse Keybinds 0 Fullscreen 2 Font 24/Smallcaps Map View 76x50 Zoom Use 0% Tactical HUD 1 Map Filters NONE Filters NONE Steam 1 RUN: 62d41d92-1d0f-403b-9754-c068bd76b416